[Event "26th Hit Open-A 2022"]
[Site "Nova Gorica"]
[Date "2022.09.19"]
[Round "6.15"]
[White "Sharan, Rao"]
[Black "Centrih, Aleks"]
[Result "1-0"]
[ECO "A06"]
[WhiteElo "2312"]
[BlackElo "2095"]
[Annotator "TA"]
[PlyCount "161"]
[EventDate "2022.09.16"]
[EventType "swiss"]
[EventCountry "SLO"]
[SourceTitle "playchess.com"]
[Source "ChessBase"]
[SourceQuality "1"]
[TimeControl "5400+30"]

{[%evp 9,161,7,6,2,8,0,0,0,8,0,24,16,23,0,0,-24,-29,-83,-95,-85,-91,-106,-93,-109,-101,-129,-110,-107,-107,-114,-112,-108,-103,-100,-104,-116,-103,-144,-114,-223,-208,-182,-136,-162,-89,-77,-63,-79,0,0,33,29,85,93,129,137,133,139,133,137,130,107,138,24,26,8,93,42,35,9,41,46,52,0,8,13,36,14,14,11,12,11,22,12,7,8,8,4,4,0,189,185,187,171,170,144,125,89,87,68,160,146,172,167,160,160,160,170,270,254,237,229,285,284,267,264,1157,1964,3351,1912,29949,29952,29963,29963,29972,29965,29974,29975,29975,29975,29975,29974,29974,29975,29976,29975,29975,29976,29975,29977,29977,29978,29977,29979,29980,29980,29980,29982,29982,29983,29986,29981,29981,29982]} 1. Nf3 {[%emt 0:00:03]} d5 {[%emt 0:00:06]} 2. b3 {[%emt 0:00:33]} Bg4 {[%emt 0:00:15]} 3. Bb2 {[%emt 0:00:30]} Nd7 {[%emt 0:00:06]} 4. d4 {[%emt 0:01:14]} e6 {[%emt 0:00:14]} 5. e3 {[%emt 0:01:20]} Ngf6 {[%emt 0:00:08] CPLX 2.2} 6. Be2 {[%emt 0:00:30] CPLX 2.1 4 (Bf1-d3) (=4). A06: Réti Opening: 1 Nf3 d5.} Bb4+ {[%emt 0:00:10] CPLX 2.1} 7. c3 {[%emt 0:02:37][%cal Bc2c3,Bc3c4][%mdl 32] CPLX 2.2 8 (Nf3-d2) (=6)} Bd6 {[%emt 0:00:07] CPLX 2.5} 8. Nbd2 {[%emt 0:05:32] CPLX 2.1. The position is equal.} c6 {[%emt 0:00:18] BESTDEEP} 9. c4 {[%emt 0:01:10] CPLX 2.1 8 (0-0) (=5)} Bf5 {[%emt 0:11:28] CPLX 2.4 24 (0-0) (=5)} 10. O-O {[%emt 0:02:49] CPLX 2.3 8 (Nf3-h4) (=6)} h5 {[%emt 0:01:40] [#] CPLX 2.5 7 (h7-h6) (=5)} 11. Ne5 $146 {[%emt 0:06:55] CPLX 2.6 23 (Ra1-c1) (=9)} ({Predecessor:} 11. Nh4 Bxh2+ 12. Kh1 Ng4 13. Nxf5 exf5 14. Nf3 Bc7 15. cxd5 Ndf6 16. dxc6 b6 17. Qc2 g6 18. Qc4 {0-1 (32) Hollstein,G-Heine,J Fischbach 1997}) 11... Ng4 {[%emt 0:00:49] BESTDEEP} 12. cxd5 {[%emt 0:18:18] CPLX 3.9 24 (Ne5-f3) (=11)} exd5 {[%emt 0:00:19][%cal Rd7e5] RECAPT} 13. e4 {[%emt 0:04:06] CPLX 3.7 54 (Nd2-f3) (=16)} (13. Ndf3 $11) 13... dxe4 $17 {[%emt 0:37:29][%cal Rd7e5] CPLX 4.0} 14. Ndc4 {[%emt 0:00:37] EASY} Bc7 {[%emt 0:02:50] CPLX 4.6 0 (Nd7-b6) (=3)} 15. g3 {[%emt 0:13:12][%cal Re5g4] Prevents Qh4. CPLX 4.1 15 (h2-h3) (=14)} Ngf6 {[%emt 0:18:51] CPLX 4.2 13 (Nd7-f6) (=4)} 16. Qc1 {[%emt 0:06:29] CPLX 3.3 16 (Nc4-e3) (=15)} Nd5 {[%emt 0:03:21] CPLX 3.3} 17. Ne3 {[%emt 0:08:42] CPLX 3.5 28 (Bb2-a3) (=16)} Be6 {[%emt 0:02:30] CPLX 3.6 19 (Nd5xe3) (=5)} 18. h4 {[%emt 0:11:19] BESTDEEP} N7f6 {[%emt 0:08:55] BESTDEEP} 19. Ba3 {[%emt 0:02:21] CPLX 2.9} Bd6 {[%emt 0:06:14] EASY} 20. N3c4 {[%emt 0:00:04] CPLX 3.3} Be7 {[%emt 0:00:43] CPLX 3.4} 21. Bc5 {[%emt 0:03:53] BESTDEEP} O-O {[%emt 0:00:52] CPLX 3.5} 22. Re1 {[%emt 0:00:31] CPLX 3.2 12 (Qc1-b2) (=12)} Nb6 {[%emt 0:01:50] CPLX 3.2 13 (Rf8-e8) (=4)} 23. Na5 {[%emt 0:01:42][%cal Oa5c6] CPLX 3.2 41 (Bc5xe7) (=13)} Qc7 {[%emt 0:00:52] CPLX 3.1} 24. Qg5 {[%emt 0:02:36] CPLX 3.2 109 (Bc5xe7) (=18)} (24. Bxe7 $17 {was necessary.} Qxe7 25. Qc5) 24... Nbd5 $19 {[%emt 0:01:46] CPLX 4.2} 25. Nac4 {[%emt 0:01:05] Inhibits e3. CPLX 4.5} Rfe8 {[%emt 0:00:33] CPLX 4.2 46 (Ra8-d8) (=6)} (25... Rad8 $19 {aiming for ...b5.} 26. Rac1 e3) 26. Bxh5 {[%emt 0:01:33] CPLX 4.2 26 (Bc5xe7) (=18)} Nxh5 {[%emt 0:00:18] CPLX 5.1 73 (e4-e3) (=9)} ({Black should play} 26... e3 $19 27. Nxe3 (27. fxe3 $2 Bxc5 28. dxc5 Ne4 $19) 27... Nxe3 28. Rxe3 Nd5 29. Bxe7 Rxe7) 27. Qxh5 $17 {[%emt 0:00:35] RECAPT} Nf6 {[%emt 0:00:15] CPLX 4.9 14 (Ra8-d8) (=9)} 28. Qg5 {[%emt 0:00:35] CPLX 5.0 16 (Qh5-e2) (=17)} Bxc5 {[%emt 0:00:57] CPLX 4.4 79 (Ra8-d8) (=12)} (28... Rad8 $17) 29. dxc5 $11 {[%emt 0:00:04] RECAPT} Bxc4 {[%emt 0:00:31] CPLX 3.7 33 (Nf6-h7) (=13)} 30. Nxc4 {[%emt 0:00:30] RECAPT} Nd5 {[%emt 0:00:29] CPLX 2.7 56 (Ra8-d8) (=15)} (30... Rad8 $11) 31. Nd6 $16 {[%emt 0:00:00] EASY} Re6 {[%emt 0:00:04][%cal Oe4e3] CPLX 3.7 36 (e4-e3) (=15)} 32. Rxe4 {[%emt 0:00:34] White is much more active. CPLX 3.5} ({Avoid the trap} 32. Nxe4 $2 Rae8 33. Qg4 Re5 $19) 32... Rxe4 {[%emt 0:00:28] RECAPT} 33. Nxe4 {[%emt 0:00:02] RECAPT} Re8 {[%emt 0:00:19] BESTDEEP} 34. Nd6 {[%emt 0:00:56] EASY} Re6 {[%emt 0:00:06] BESTDEEP} 35. h5 {[%emt 0:00:50] CPLX 3.0 23 (a2-a3) (=14)} Qe7 {[%emt 0:00:34] CPLX 3.2 31 (b7-b6) (=14)} 36. Qg4 {[%emt 0:02:44] RELBLUND 114 (Qg5xe7) (=17)} (36. Qxe7 $1 $16 {White threatens Qd8+ and mate.} Rxe7 37. Rc1) 36... Nf6 $1 $11 {[%emt 0:00:16] DEEPSTRONG=>BLUNDERREACT} 37. Qf3 {[%emt 0:01:04] CPLX 3.2 18 (Qg4-d4) (=17)} Nd5 {[%emt 0:00:56] RELBLUND 85 (Re6-e5) (=16)} (37... Re5 $1 $11) 38. Rf1 {[%emt 0:00:25] CPLX 2.6 51 (Ra1-d1) (=18)} (38. Rd1 $16) 38... b6 $14 {[%emt 0:00:30] CPLX 2.6} 39. Nf5 {[%emt 0:00:32] CPLX 2.8 26 (b3-b4) (=18)} (39. b4 {with more complications.} Nxb4 40. h6 Qf6 41. h7+) 39... Qf6 {[%emt 0:00:13] CPLX 2.8 32 (Qe7-g5) (=16)} 40. cxb6 {[%emt 0:00:15] CPLX 2.6} axb6 {[%emt 0:00:22] RECAPT} 41. Kg2 {[%emt 0:01:19] CPLX 2.5 52 (Rf1-d1) (=19)} (41. Rd1 $14) 41... Re5 {[%emt 0:01:17][%cal Be6e5,Be5h5,Bh5h6][%mdl 32] CPLX 2.5 8 (Qf6-g5) (=15)} 42. Nd4 {[%emt 0:00:19] CPLX 2.6 0 (g3-g4) (=18)} (42. g4 {feels hotter.} Re2 43. Rc1 Rxa2 44. Rc4) 42... Qxf3+ {[%emt 0:00:21] CPLX 2.6 23 (c6-c5) (=16)} 43. Kxf3 $11 {[%emt 0:00:01][%mdl 4096] Endgame KRN-KRN. RECAPT 22 (Nd4xf3) (=18)} c5 {[%emt 0:00:08] EASY} 44. Nc6 {[%emt 0:00:35] CPLX 2.0 3 (Nd4-b5) (=18)} Rxh5 {[%emt 0:00:29] EASY} 45. Rd1 {[%emt 0:00:01][%cal Od1d5] CPLX 2.0 1 (a2-a4) (=18)} Rh6 {[%emt 0:00:36] CPLX 2.0 11 (Nd5-c3) (=15)} 46. Rxd5 {[%emt 0:00:36] CPLX 2.0 10 (Nc6-e5) (=17)} Rxc6 {[%emt 0:00:06] KR-KR. CPLX 2.0} 47. Rd8+ {[%emt 0:00:02] CPLX 2.0} Kh7 {[%emt 0:00:08] LEGAL} 48. Ke4 {[%emt 0:02:01] CPLX 2.0 4 (Kf3-e2) (=17)} c4 {[%emt 0:00:41] CPLX 2.0} 49. Rd2 {[%emt 0:00:22] CPLX 2.0 4 (Rd8-d1) (=16)} c3 $2 {[%emt 0:01:33] RELBLUND 189 (b6-b5) (=18)} (49... b5 $11 {and Black stays safe.}) 50. Rc2 $18 {[%emt 0:00:02] CPLX 2.1=>BLUNDERREACT} b5 {[%emt 0:00:04] CPLX 2.0} 51. a3 {[%emt 0:00:16] BESTDEEP} Ra6 {[%emt 0:00:34] BESTDEEP} 52. Rxc3 {[%emt 0:00:11] Hoping for b4. CPLX 2.0 26 (Ke4-d3) (=16)} Rxa3 {[%emt 0:00:07] CPLX 2.0} 53. Kd4 {[%emt 0:00:15] CPLX 2.0 36 (Ke4-d5) (=16)} Ra2 {[%emt 0:00:16] DEEPSTRONG} 54. f3 {[%emt 0:01:15] CPLX 2.0 19 (Rc3-f3) (=16)} Rg2 {[%emt 0:00:41] CPLX 2.0 92 (b5-b4) (=18)} (54... b4 $14 55. Rc4 f5) 55. g4 $16 {[%emt 0:00:17] Black must now prevent Kc5. CPLX 2.0=>BLUNDERREACT} Re2 {[%emt 0:01:30] CPLX 2.0 26 (b5-b4) (=18)} 56. Rc5 {[%emt 0:01:05] CPLX 2.0 5 (b3-b4) (=16)} Rd2+ {[%emt 0:00:34] BESTDEEP} 57. Ke3 {[%emt 0:00:51] CPLX 2.0} Rb2 {[%emt 0:00:27] CPLX 2.0 0 (Rd2-d1) (=17)} 58. Rxb5 {[%emt 0:00:01] CPLX 2.0} Kg6 {[%emt 0:00:20] CPLX 2.0 100 (Kh7-h6) (=19)} (58... Kh6 $142 59. Kf4 Rb1) 59. Kd4 $18 {[%emt 0:00:29] CPLX 2.0} Kf6 {[%emt 0:00:37] CPLX 2.0} 60. Kc3 {[%emt 0:00:51] CPLX 2.0} Rb1 {[%emt 0:00:27] CPLX 2.0 56 (Rb2-f2) (=19)} 61. Rd5 {[%emt 0:00:20]} Ke6 {[%emt 0:00:37] [#]} 62. Rd3 $1 {[%emt 0:00:04] b4 is the strong threat.} f5 $2 {[%emt 0:00:37]} (62... Rc1+ 63. Kb2 Rc8) 63. gxf5+ {[%emt 0:00:14]} Kxf5 {[%emt 0:00:05]} 64. b4 {[%emt 0:00:11][%cal Bb3b4,Bb4b5,Bb5b6][%mdl 32] Strongly threatening Kc4.} g5 {[%emt 0:00:37]} 65. Kc4 {[%emt 0:00:08] White mates.} Kf4 {[%emt 0:00:11]} 66. b5 {[%emt 0:00:18]} Rb2 {[%emt 0:01:01]} 67. Kc5 {[%emt 0:01:12]} Rb1 {[%emt 0:00:17]} 68. b6 {[%emt 0:00:08]} Rb2 {[%emt 0:00:30]} 69. Kc6 {[%emt 0:00:10]} Rc2+ {[%emt 0:00:16]} 70. Kb5 {[%emt 0:01:09]} Rb2+ {[%emt 0:00:05]} 71. Kc5 {[%emt 0:00:20]} Rb1 {[%emt 0:00:48]} 72. Kc6 {[%emt 0:00:23]} Rc1+ {[%emt 0:00:04]} 73. Kd7 {[%emt 0:00:01]} Rb1 {[%emt 0:00:11] [#]} 74. Kc7 $1 {[%emt 0:00:04]} Rc1+ {[%emt 0:00:30]} 75. Kb8 {[%emt 0:00:03]} Rb1 {[%emt 0:00:36]} 76. b7 {[%emt 0:00:04]} Re1 {[%emt 0:00:56]} 77. Rc3 {[%emt 0:00:21]} Re2 {[%emt 0:01:27]} 78. Kc7 {[%emt 0:00:25]} Re7+ {[%emt 0:00:20]} 79. Kb6 {[%emt 0:00:04]} Re6+ {[%emt 0:00:39]} 80. Ka7 {[%emt 0:00:07]} Re7 {[%emt 0:00:17]} 81. Ka8 {[%emt 0:00:05] White used his chance.  Weighted Error Value: White=0.18 (very precise) /Black=0.23 (precise)} 1-0

[Event "26th Hit Open-A 2022"]
[Site "Nova Gorica"]
[Date "2022.09.19"]
[Round "6.17"]
[White "Devnani Kush"]
[Black "Lavrencic, Matic"]
[Result "1/2-1/2"]
[ECO "E04"]
[WhiteElo "2095"]
[BlackElo "2274"]
[Annotator "TA"]
[PlyCount "52"]
[EventDate "2022.09.16"]
[EventType "swiss"]
[EventCountry "SLO"]
[SourceTitle "playchess.com"]
[Source "ChessBase"]
[SourceQuality "1"]
[TimeControl "5400+30"]

{[%evp 11,52,0,0,7,0,-2,6,0,0,0,0,-14,-6,-45,-42,-50,0,-16,-16,-70,-70,-75,-68,-69,-70,-69,-64,-123,-70,-37,-56,-47,0,0,-8,-39,0,0,0,0,0,0,0]} 1. d4 {[%emt 0:01:13]} Nf6 {[%emt 0:00:08]} 2. c4 {[%emt 0:00:08]} e6 {[%emt 0:00:11]} 3. Nf3 {[%emt 0:00:15]} d5 {[%emt 0:00:08]} 4. g3 {[%emt 0:00:05]} dxc4 {[%emt 0:00:11]} 5. Bg2 {[%emt 0:00:04]} c6 {[%emt 0:00:09]} 6. O-O {[%emt 0:04:01]} b5 {[%emt 0:00:35]} 7. Ne5 {[%emt 0:02:12] E04: Open Catalan: 5 Nf3.} Bb7 {[%emt 0:00:32]} 8. a4 {[%emt 0:00:56] [#] Hoping for axb5.} a6 {[%emt 0:00:46]} 9. b3 {[%emt 0:00:04]} cxb3 {[%emt 0:00:20]} 10. Bb2 {[%emt 0:02:55] 10.Qxb3 is more fashionable.} Nbd7 {[%emt 0:00:42]} 11. Nd3 {[%emt 0:19:32]} Qb6 {[%emt 0:18:11]} 12. Qxb3 {[%emt 0:10:17]} Be7 {[%emt 0:05:44]} 13. Rc1 {[%emt 0:11:01]} Rc8 {[%emt 0:04:32] [#]} (13... O-O $15) 14. Nc3 $146 {[%emt 0:12:29]} ({Predecessor:} 14. e3 O-O 15. a5 Qc7 16. Ba3 Bxa3 17. Qxa3 e5 18. Nd2 exd4 19. exd4 Rfd8 20. Nb3 {0-1 (77) Navalgund,N (2312)-Avinash,V (1707) Mumbai 2018}) 14... O-O {[%emt 0:05:10] aiming for ...c5.} 15. e3 {[%emt 0:02:23]} (15. Ba3 $11 Bxa3 16. Qxa3) 15... c5 $15 {[%emt 0:24:25]} 16. dxc5 $1 {[%emt 0:01:17]} Nxc5 {[%emt 0:01:26]} 17. Nxc5 {[%emt 0:00:19]} Bxg2 {[%emt 0:08:11]} ({Of course not} 17... Rxc5 18. Ba3 Bxg2 19. Bxc5 Bxc5 20. Kxg2 $11) 18. Kxg2 {[%emt 0:00:53] [#] Threatens to win with N5e4.} Rxc5 {[%emt 0:01:18]} 19. axb5 {[%emt 0:03:46]} (19. Ba3 $1 $15 Qb7+ 20. Kg1) 19... axb5 {[%emt 0:05:03]} (19... Qb7+ $17 20. Kg1 Ng4) 20. Ba3 {[%emt 0:02:43]} Qb7+ {[%emt 0:01:50]} 21. Kg1 {[%emt 0:00:04]} Rh5 {[%emt 0:01:06] Strongly threatening ...b4.} 22. Bxe7 {[%emt 0:01:17]} Qxe7 {[%emt 0:00:06]} 23. Ra5 {[%emt 0:11:28]} Ng4 {[%emt 0:06:22] White must now prevent ...Qf6.} 24. Rxb5 {[%emt 0:08:01] The position is equal.} Rxb5 {[%emt 0:04:45]} 25. Qxb5 {[%emt 0:01:09]} Qf6 {[%emt 0:01:15]} 26. Qe2 {[%emt 0:00:39]} Ne5 {[%emt 0:02:13] Weighted Error Value: White=0.13 (very precise) /Black=0.12 (very precise)} 1/2-1/2

[Event "26th Hit Open-A 2022"]
[Site "Nova Gorica"]
[Date "2022.09.19"]
[Round "6.18"]
[White "Labrovic, Jakov"]
[Black "Ronka, Erik"]
[Result "0-1"]
[ECO "D94"]
[WhiteElo "1882"]
[BlackElo "2248"]
[Annotator "TA"]
[PlyCount "100"]
[EventDate "2022.09.16"]
[EventType "swiss"]
[EventCountry "SLO"]
[SourceTitle "playchess.com"]
[Source "ChessBase"]
[SourceQuality "1"]
[TimeControl "5400+30"]

{[%evp 18,99,-5,-12,0,0,-6,-15,-8,-43,-47,-43,-23,-39,-12,-32,0,-27,-11,-22,18,23,18,14,16,-1,-7,-8,0,-7,0,0,0,-6,4,0,0,0,0,-26,44,-6,-1,-4,-7,-14,-7,-22,-3,-8,-6,-4,4,0,0,0,0,-37,-34,-73,-72,-79,-68,-70,-37,-194,-194,-188,-194,-327,-260,-261,-269,-292,-301,-350,-336,-311,-292,-349,-161,-625,-603,-29999]} 1. e4 {[%emt 0:00:05]} c6 {[%emt 0:01:04]} 2. d4 {[%emt 0:00:15]} d5 {[%emt 0:00:08]} 3. exd5 {[%emt 0:00:09]} cxd5 {[%emt 0:00:10]} 4. c4 {[%emt 0:00:13]} Nf6 {[%emt 0:00:06]} 5. Nc3 {[%emt 0:00:13]} g6 {[%emt 0:00:13]} 6. Be3 {[%emt 0:00:56]} Bg7 {[%emt 0:00:38]} 7. Nf3 {[%emt 0:00:39]} O-O {[%emt 0:00:16]} 8. Be2 {[%emt 0:00:37]} Nc6 {[%emt 0:00:18]} 9. O-O {[%emt 0:00:28]} dxc4 {[%emt 0:01:37]} 10. Bxc4 {[%emt 0:01:01]} Na5 {[%emt 0:00:15] D94: Grünfeld: 4 Nf3 Bg7 5 e3.} 11. Be2 {[%emt 0:00:44]} Be6 {[%emt 0:00:27]} 12. Re1 {[%emt 0:06:20]} Rc8 {[%emt 0:04:38] [#] The position is equal.} 13. Ng5 $146 {[%emt 0:09:17]} ({Predecessor:} 13. Qd2 Bc4 14. Bh6 Nd5 15. Bxg7 Kxg7 16. Ne5 Nxc3 17. bxc3 e6 18. Ng4 Qh4 19. g3 {0-1 (38) Lauridsen,J (2208)-Fus,J (2382) Chess.com INT 2022}) 13... Bc4 {[%emt 0:03:31]} 14. Rc1 {[%emt 0:11:29]} Qd7 {[%emt 0:23:05]} 15. Bf3 {[%emt 0:14:28]} b6 {[%emt 0:30:30]} 16. b3 {[%emt 0:27:28]} Bd5 {[%emt 0:05:08]} 17. Qe2 {[%emt 0:05:30]} Bxf3 {[%emt 0:03:40]} 18. Nxf3 {[%emt 0:00:21]} Nd5 {[%emt 0:03:44]} 19. Nxd5 {[%emt 0:02:14]} Qxd5 {[%emt 0:00:04]} 20. Qa6 {[%emt 0:01:23][%csl LRa7,LRc8]} Qd7 {[%emt 0:07:51]} 21. Red1 {[%emt 0:06:05]} Nc6 {[%emt 0:01:15]} 22. Qa4 {[%emt 0:01:47]} Nb8 {[%emt 0:02:16]} 23. Qa3 {[%emt 0:01:11]} e6 {[%emt 0:02:12]} 24. Ne5 {[%emt 0:01:49]} Qb7 {[%emt 0:00:32]} 25. Nc4 {[%emt 0:01:15]} Qa6 {[%emt 0:03:19]} (25... Rfd8 {is interesting.} 26. Ne5 Rxc1 27. Rxc1 f6) 26. Qxa6 {[%emt 0:03:02]} Nxa6 {[%emt 0:00:01]} 27. a3 {[%emt 0:00:50] Prevents Nb4.} Rfd8 {[%emt 0:01:44]} 28. Kf1 {[%emt 0:00:29][%cal Oc4d6]} Nb8 {[%emt 0:00:59] [#]} (28... Nc7 $11) 29. Ne5 {[%emt 0:01:57]} (29. Nd6 $1 $14 Rc6 30. Nb5) 29... f6 $11 {[%emt 0:00:47]} 30. Rxc8 {[%emt 0:01:43]} Rxc8 {[%emt 0:00:03]} 31. Nc4 {[%emt 0:00:13]} Bf8 {[%emt 0:01:34]} 32. a4 {[%emt 0:00:44]} Kf7 {[%emt 0:01:45]} 33. Ke2 {[%emt 0:00:01]} Na6 {[%emt 0:00:21]} 34. g4 {[%emt 0:00:35]} g5 {[%emt 0:00:51]} 35. f4 {[%emt 0:00:26]} h6 {[%emt 0:00:20]} 36. fxg5 {[%emt 0:00:09]} hxg5 {[%emt 0:00:07]} 37. Rf1 {[%emt 0:00:23] [#] Strongly threatening Bxg5.} Kg6 {[%emt 0:00:54]} 38. Rf3 {[%emt 0:00:58][%cal Oh2h4]} Nb4 {[%emt 0:00:28]} 39. Bf2 {[%emt 0:00:53]} Nd5 {[%emt 0:00:35]} 40. Bg3 {[%emt 0:00:36]} a6 {[%emt 0:00:19][%cal Ba7a6,Ba6b5][%mdl 32]} 41. Kd3 $2 {[%emt 0:00:54] This costs White the game.} ({White should play} 41. h4 $15) 41... b5 $19 {[%emt 0:00:51] ...Nb4+ is the strong threat.} 42. axb5 {[%emt 0:00:11]} axb5 {[%emt 0:00:05]} 43. Nd2 {[%emt 0:01:04]} (43. Nd6 $142 Rc3+ 44. Ke2) 43... Rc3+ {[%emt 0:02:05]} 44. Ke2 {[%emt 0:00:01]} Rc2 {[%emt 0:00:11]} 45. Kd1 {[%emt 0:00:24]} Ra2 {[%emt 0:00:42] White must now prevent ...Bb4.} 46. Ne4 {[%emt 0:00:34]} f5 {[%emt 0:00:46] And now ...Bb4 would win.} 47. Nc5 {[%emt 0:00:51]} f4 {[%emt 0:00:46]} 48. Nxe6 {[%emt 0:00:18]} Bb4 {[%emt 0:00:12]} (48... Bd6 $142 49. Bf2 Bb4) 49. Bf2 {[%emt 0:01:05]} (49. Bxf4 Nxf4 50. Nxf4+ gxf4 51. Rxf4) 49... Nc3+ {[%emt 0:00:27]} 50. Kc1 {[%emt 0:00:36]} Ba3# {[%emt 0:00:52] Weighted Error Value: White=0.47/Black=0.18 (very precise)} 0-1